[Event "Titled Tuesday Blitz July 18 Early 2023"]
[White "Jiang, Andrew"]
[Black "Vovk, Orest"]
[WhiteFideId "30953510"]
[BlackFideId "14113490"]
[WhiteElo "2400"]
[BlackElo "2581"]
[Result "1-0"]
[Round "9"]
[TimeControl "180+2"]
[Date "2023.07.18"]
[WhiteClock "0:00:07"]
[BlackClock "0:00:01"]
[Board "70"]

1. e4 {[%clk 0:02:57]}  g5 {[%clk 0:02:56]} 2. Nc3 {[%clk 0:02:42]}  Bg7 {[%clk 0:02:56]} 3. h4 {[%clk 0:02:42]}  Bxc3 {[%clk 0:02:48]} 4. dxc3 {[%clk 0:02:41]}  g4 {[%clk 0:02:47]} 5. Qxg4 {[%clk 0:02:40]}  Nf6 {[%clk 0:02:47]} 6. Qe2 {[%clk 0:02:31]}  d5 {[%clk 0:02:45]} 7. e5 {[%clk 0:02:30]}  Ne4 {[%clk 0:02:44]} 8. Bf4 {[%clk 0:02:28]}  Nc6 {[%clk 0:02:41]} 9. O-O-O {[%clk 0:02:22]}  Be6 {[%clk 0:02:39]} 10. c4 {[%clk 0:02:20]}  Qd7 {[%clk 0:02:12]} 11. cxd5 {[%clk 0:02:11]}  Bxd5 {[%clk 0:02:12]} 12. c4 {[%clk 0:02:11]}  Qf5 {[%clk 0:02:12]} 13. Nh3 {[%clk 0:02:03]}  Be6 {[%clk 0:01:57]} 14. g4 {[%clk 0:02:00]}  Qxg4 {[%clk 0:01:08]} 15. Qxe4 {[%clk 0:01:53]}  Bf5 {[%clk 0:01:07]} 16. Qe1 {[%clk 0:01:25]}  Qxh4 {[%clk 0:00:52]} 17. Bg3 {[%clk 0:01:13]}  Qh6+ {[%clk 0:00:46]} 18. Qe3 {[%clk 0:01:12]}  Qxe3+ {[%clk 0:00:33]} 19. fxe3 {[%clk 0:01:07]}  Nb4 {[%clk 0:00:34]} 20. b3 {[%clk 0:00:53]}  Nxa2+ {[%clk 0:00:32]} 21. Kb2 {[%clk 0:00:53]}  Nb4 {[%clk 0:00:32]} 22. Bg2 {[%clk 0:00:51]}  Rg8 {[%clk 0:00:26]} 23. Rhg1 {[%clk 0:00:39]}  Rxg3 {[%clk 0:00:17]} 24. Bc6+ {[%clk 0:00:38]}  Nxc6 {[%clk 0:00:14]} 25. Rxg3 {[%clk 0:00:39]}  Bg6 {[%clk 0:00:13]} 26. e6 {[%clk 0:00:37]}  fxe6 {[%clk 0:00:11]} 27. Nf4 {[%clk 0:00:37]}  Ne5 {[%clk 0:00:07]} 28. Nxe6 {[%clk 0:00:36]}  Kf7 {[%clk 0:00:05]} 29. Nxc7 {[%clk 0:00:35]}  Rc8 {[%clk 0:00:05]} 30. Rf1+ {[%clk 0:00:35]}  Kg8 {[%clk 0:00:03]} 31. Nd5 {[%clk 0:00:33]}  Re8 {[%clk 0:00:02]} 32. Kc3 {[%clk 0:00:32]}  Nc6 {[%clk 0:00:01]} 33. e4 {[%clk 0:00:31]}  Kg7 {[%clk 0:00:02]} 34. Nf4 {[%clk 0:00:29]}  Ne5 {[%clk 0:00:01]} 35. Ne6+ {[%clk 0:00:27]}  Kg8 {[%clk 0:00:01]} 36. Rg5 {[%clk 0:00:26]}  Nf7 {[%clk 0:00:01]} 37. Rgg1 {[%clk 0:00:24]}  Nd8 {[%clk 0:00:01]} 38. Nf4 {[%clk 0:00:22]}  Kg7 {[%clk 0:00:02]} 39. Rg3 {[%clk 0:00:19]}  e5 {[%clk 0:00:02]} 40. Nxg6 {[%clk 0:00:20]}  hxg6 {[%clk 0:00:03]} 41. Rfg1 {[%clk 0:00:20]}  Re6 {[%clk 0:00:03]} 42. c5 {[%clk 0:00:20]}  Nf7 {[%clk 0:00:04]} 43. b4 {[%clk 0:00:20]}  g5 {[%clk 0:00:04]} 44. Kc4 {[%clk 0:00:20]}  Rf6 {[%clk 0:00:04]} 45. b5 {[%clk 0:00:20]}  Re6 {[%clk 0:00:04]} 46. Ra1 {[%clk 0:00:18]}  a6 {[%clk 0:00:05]} 47. b6 {[%clk 0:00:17]}  Rc6 {[%clk 0:00:04]} 48. Kd5 {[%clk 0:00:16]}  Rc8 {[%clk 0:00:04]} 49. Rxa6 {[%clk 0:00:14]}  bxa6 {[%clk 0:00:03]} 50. b7 {[%clk 0:00:14]}  Rb8 {[%clk 0:00:03]} 51. c6 {[%clk 0:00:14]}  Rd8+ {[%clk 0:00:03]} 52. Kc5 {[%clk 0:00:13]}  Nd6 {[%clk 0:00:02]} 53. Rxg5+ {[%clk 0:00:13]}  Kf6 {[%clk 0:00:02]} 54. Rg4 {[%clk 0:00:10]}  Ke6 {[%clk 0:00:01]} 55. c7 {[%clk 0:00:08]}  Nxb7+ {[%clk 0:00:01]} 56. Kc6 {[%clk 0:00:08]}  Rd1 {[%clk 0:00:01]} 57. c8=Q+ {[%clk 0:00:07]}  Ke7 {[%clk 0:00:01]} 58. Rg7+ {[%clk 0:00:07]}  Kf6 {[%clk 0:00:01]} 59. Qf8+ {[%clk 0:00:07]}  Ke6 {[%clk 0:00:01]} 60. Qf7# {[%clk 0:00:07]} 1-0


[Site "https://www.chess.com"]

[Event "Titled Tuesday Blitz July 18 Early 2023"]
[White "Garv Gaur"]
[Black "Gontcharov, Vladislav"]
[WhiteFideId "45030839"]
[BlackFideId "4123492"]
[WhiteElo "2563"]
[BlackElo "2573"]
[Result "1-0"]
[Round "9"]
[TimeControl "180+2"]
[Date "2023.07.18"]
[WhiteClock "0:00:43"]
[BlackClock "0:00:00"]
[Board "71"]

1. Nf3 {[%clk 0:03:00]}  Nf6 {[%clk 0:02:59]} 2. g3 {[%clk 0:02:59]}  c5 {[%clk 0:02:58]} 3. Bg2 {[%clk 0:02:59]}  Nc6 {[%clk 0:02:58]} 4. c4 {[%clk 0:02:57]}  d6 {[%clk 0:02:55]} 5. O-O {[%clk 0:02:55]}  g6 {[%clk 0:02:55]} 6. d3 {[%clk 0:02:53]}  Bg7 {[%clk 0:02:54]} 7. Nc3 {[%clk 0:02:53]}  O-O {[%clk 0:02:54]} 8. Qd2 {[%clk 0:02:53]}  Ne8 {[%clk 0:02:51]} 9. b3 {[%clk 0:02:52]}  Nc7 {[%clk 0:02:50]} 10. Bb2 {[%clk 0:02:51]}  Bg4 {[%clk 0:02:45]} 11. e3 {[%clk 0:02:50]}  Qd7 {[%clk 0:02:43]} 12. d4 {[%clk 0:02:49]}  cxd4 {[%clk 0:02:27]} 13. Nxd4 {[%clk 0:02:47]}  Bh3 {[%clk 0:02:19]} 14. Nd5 {[%clk 0:02:42]}  Bxg2 {[%clk 0:02:13]} 15. Kxg2 {[%clk 0:02:40]}  Rac8 {[%clk 0:01:32]} 16. Rac1 {[%clk 0:02:39]}  Rfd8 {[%clk 0:01:31]} 17. Rfd1 {[%clk 0:02:36]}  Ne5 {[%clk 0:01:17]} 18. h3 {[%clk 0:02:33]}  Nc6 {[%clk 0:01:08]} 19. e4 {[%clk 0:02:21]}  Ne6 {[%clk 0:00:57]} 20. Nf3 {[%clk 0:02:10]}  b6 {[%clk 0:00:48]} 21. e5 {[%clk 0:02:03]}  dxe5 {[%clk 0:00:23]} 22. Nf6+ {[%clk 0:02:02]}  Bxf6 {[%clk 0:00:20]} 23. Qxd7 {[%clk 0:02:03]}  Rxd7 {[%clk 0:00:20]} 24. Rxd7 {[%clk 0:02:03]}  e4 {[%clk 0:00:21]} 25. Bxf6 {[%clk 0:01:40]}  exf3+ {[%clk 0:00:20]} 26. Kxf3 {[%clk 0:01:41]}  exf6 {[%clk 0:00:21]} 27. Kg2 {[%clk 0:01:41]}  Ne5 {[%clk 0:00:20]} 28. Rxa7 {[%clk 0:01:40]}  Rd8 {[%clk 0:00:20]} 29. Rc2 {[%clk 0:01:36]}  Rd6 {[%clk 0:00:15]} 30. Rb7 {[%clk 0:01:29]}  h5 {[%clk 0:00:14]} 31. b4 {[%clk 0:01:15]}  Rc6 {[%clk 0:00:14]} 32. c5 {[%clk 0:01:14]}  bxc5 {[%clk 0:00:13]} 33. b5 {[%clk 0:01:15]}  Rd6 {[%clk 0:00:14]} 34. a4 {[%clk 0:01:14]}  Nd4 {[%clk 0:00:14]} 35. Rxc5 {[%clk 0:01:13]}  Nb3 {[%clk 0:00:13]} 36. Rc8+ {[%clk 0:01:12]}  Kg7 {[%clk 0:00:12]} 37. b6 {[%clk 0:01:11]}  Na5 {[%clk 0:00:11]} 38. Ra7 {[%clk 0:01:08]}  Rxb6 {[%clk 0:00:08]} 39. Rxa5 {[%clk 0:01:08]}  Rb2 {[%clk 0:00:08]} 40. Rb5 {[%clk 0:01:08]}  Ra2 {[%clk 0:00:08]} 41. a5 {[%clk 0:01:06]}  h4 {[%clk 0:00:07]} 42. gxh4 {[%clk 0:01:04]}  Nd3 {[%clk 0:00:08]} 43. Rc7 {[%clk 0:01:01]}  Rxf2+ {[%clk 0:00:05]} 44. Kg3 {[%clk 0:01:01]}  Ra2 {[%clk 0:00:04]} 45. Rc3 {[%clk 0:00:54]}  Ne5 {[%clk 0:00:03]} 46. Rcc5 {[%clk 0:00:50]}  Kh6 {[%clk 0:00:03]} 47. Rb6 {[%clk 0:00:50]}  Kg7 {[%clk 0:00:03]} 48. a6 {[%clk 0:00:50]}  Ra3+ {[%clk 0:00:03]} 49. Kg2 {[%clk 0:00:48]}  Nd7 {[%clk 0:00:03]} 50. Rcc6 {[%clk 0:00:45]}  Nxb6 {[%clk 0:00:03]} 51. Rxb6 {[%clk 0:00:46]}  f5 {[%clk 0:00:03]} 52. Rc6 {[%clk 0:00:46]}  f4 {[%clk 0:00:04]} 53. Rb6 {[%clk 0:00:46]}  f5 {[%clk 0:00:03]} 54. Rb7+ {[%clk 0:00:42]}  Kh6 {[%clk 0:00:00]} 55. a7 {[%clk 0:00:43]} 1-0


[Site "https://www.chess.com"]

[Event "Titled Tuesday Blitz July 18 Early 2023"]
[White "Wagh Suyog"]
[Black "Shapiro, Daniel"]
[WhiteFideId "25071688"]
[BlackFideId "2001780"]
[WhiteElo "2792"]
[BlackElo "2353"]
[Result "1-0"]
[Round "9"]
[TimeControl "180+2"]
[Date "2023.07.18"]
[WhiteClock "0:01:20"]
[BlackClock "0:00:09"]
[Board "73"]

1. e4 {[%clk 0:02:59]}  c5 {[%clk 0:02:56]} 2. Nf3 {[%clk 0:02:59]}  d6 {[%clk 0:02:53]} 3. d4 {[%clk 0:02:59]}  cxd4 {[%clk 0:02:53]} 4. Nxd4 {[%clk 0:03:00]}  Nf6 {[%clk 0:02:53]} 5. Nc3 {[%clk 0:03:01]}  Nc6 {[%clk 0:02:54]} 6. Bg5 {[%clk 0:03:00]}  Qb6 {[%clk 0:02:54]} 7. Nb3 {[%clk 0:02:59]}  e6 {[%clk 0:02:54]} 8. Bf4 {[%clk 0:02:59]}  Ne5 {[%clk 0:02:47]} 9. Bb5+ {[%clk 0:02:54]}  Bd7 {[%clk 0:02:42]} 10. Bxd7+ {[%clk 0:02:53]}  Nfxd7 {[%clk 0:02:34]} 11. Qe2 {[%clk 0:02:52]}  a6 {[%clk 0:02:26]} 12. O-O-O {[%clk 0:02:52]}  Be7 {[%clk 0:02:24]} 13. Be3 {[%clk 0:02:47]}  Qc7 {[%clk 0:02:23]} 14. Bd4 {[%clk 0:02:46]}  O-O {[%clk 0:02:21]} 15. f4 {[%clk 0:02:46]}  Nc4 {[%clk 0:02:18]} 16. Kb1 {[%clk 0:02:42]}  Rac8 {[%clk 0:02:14]} 17. h4 {[%clk 0:02:38]}  b5 {[%clk 0:02:12]} 18. a3 {[%clk 0:02:36]}  Ndb6 {[%clk 0:01:58]} 19. e5 {[%clk 0:02:31]}  d5 {[%clk 0:01:50]} 20. g4 {[%clk 0:02:25]}  Bxa3 {[%clk 0:01:45]} 21. bxa3 {[%clk 0:02:24]}  Nxa3+ {[%clk 0:01:45]} 22. Ka1 {[%clk 0:01:59]}  Nxc2+ {[%clk 0:01:38]} 23. Qxc2 {[%clk 0:01:58]}  b4 {[%clk 0:01:39]} 24. Bxb6 {[%clk 0:01:53]}  Qxb6 {[%clk 0:01:19]} 25. Na4 {[%clk 0:01:53]}  Qb5 {[%clk 0:01:19]} 26. Nbc5 {[%clk 0:01:53]}  b3 {[%clk 0:01:04]} 27. Qc3 {[%clk 0:01:46]}  Rc6 {[%clk 0:00:48]} 28. Rb1 {[%clk 0:01:47]}  Qe2 {[%clk 0:00:22]} 29. Rxb3 {[%clk 0:01:37]}  Qxg4 {[%clk 0:00:22]} 30. Qd4 {[%clk 0:01:34]}  h6 {[%clk 0:00:20]} 31. h5 {[%clk 0:01:28]}  Qg2 {[%clk 0:00:20]} 32. Rg1 {[%clk 0:01:26]}  Qh2 {[%clk 0:00:19]} 33. Rbg3 {[%clk 0:01:25]}  Qxh5 {[%clk 0:00:16]} 34. Rxg7+ {[%clk 0:01:25]}  Kh8 {[%clk 0:00:17]} 35. Qd3 {[%clk 0:01:22]}  Qf5 {[%clk 0:00:13]} 36. Qxf5 {[%clk 0:01:22]}  exf5 {[%clk 0:00:13]} 37. Nd7 {[%clk 0:01:22]}  Rfc8 {[%clk 0:00:10]} 38. Nf6 {[%clk 0:01:22]}  Rxf6 {[%clk 0:00:09]} 39. exf6 {[%clk 0:01:20]} 1-0


[Site "https://www.chess.com"]

[Event "Titled Tuesday Blitz July 18 Early 2023"]
[White "vishwa_vijeta"]
[Black "Molina, Roberto Junio Brito"]
[BlackFideId "2109450"]
[WhiteElo "2489"]
[BlackElo "2858"]
[Result "0-1"]
[Round "9"]
[TimeControl "180+2"]
[Date "2023.07.18"]
[WhiteClock "0:00:07"]
[BlackClock "0:00:04"]
[Board "74"]

1. e4 {[%clk 0:02:59]}  e5 {[%clk 0:02:58]} 2. Nf3 {[%clk 0:02:56]}  Nc6 {[%clk 0:02:58]} 3. d4 {[%clk 0:02:55]}  exd4 {[%clk 0:02:58]} 4. Nxd4 {[%clk 0:02:48]}  Nf6 {[%clk 0:02:54]} 5. Nxc6 {[%clk 0:02:43]}  bxc6 {[%clk 0:02:55]} 6. e5 {[%clk 0:02:43]}  Qe7 {[%clk 0:02:53]} 7. Qe2 {[%clk 0:02:43]}  Nd5 {[%clk 0:02:52]} 8. h4 {[%clk 0:02:43]}  g6 {[%clk 0:02:47]} 9. c4 {[%clk 0:02:39]}  Ba6 {[%clk 0:02:39]} 10. Bg5 {[%clk 0:02:35]}  Qb4+ {[%clk 0:02:23]} 11. Qd2 {[%clk 0:02:34]}  Bxc4 {[%clk 0:02:00]} 12. Qxb4 {[%clk 0:01:59]}  Bxb4+ {[%clk 0:01:57]} 13. Bd2 {[%clk 0:02:00]}  Bxf1 {[%clk 0:01:56]} 14. Rxf1 {[%clk 0:01:59]}  Rb8 {[%clk 0:01:51]} 15. b3 {[%clk 0:01:55]}  O-O {[%clk 0:01:48]} 16. Bxb4 {[%clk 0:01:53]}  Nxb4 {[%clk 0:01:38]} 17. Kd2 {[%clk 0:01:52]}  Rfe8 {[%clk 0:01:38]} 18. f4 {[%clk 0:01:51]}  d6 {[%clk 0:01:37]} 19. exd6 {[%clk 0:01:50]}  Rbd8 {[%clk 0:01:09]} 20. Kc3 {[%clk 0:01:27]}  Nd5+ {[%clk 0:01:09]} 21. Kb2 {[%clk 0:01:16]}  Re2+ {[%clk 0:01:07]} 22. Ka3 {[%clk 0:01:16]}  cxd6 {[%clk 0:00:49]} 23. g3 {[%clk 0:01:04]}  Rb8 {[%clk 0:00:47]} 24. Rd1 {[%clk 0:00:54]}  Rb6 {[%clk 0:00:36]} 25. Rd2 {[%clk 0:00:51]}  Re3 {[%clk 0:00:33]} 26. Kb2 {[%clk 0:00:40]}  Rxg3 {[%clk 0:00:33]} 27. Na3 {[%clk 0:00:41]}  Rb8 {[%clk 0:00:25]} 28. Nc4 {[%clk 0:00:41]}  Rd8 {[%clk 0:00:25]} 29. Rf1 {[%clk 0:00:39]}  Rg4 {[%clk 0:00:20]} 30. f5 {[%clk 0:00:40]}  Rxh4 {[%clk 0:00:18]} 31. fxg6 {[%clk 0:00:40]}  hxg6 {[%clk 0:00:18]} 32. Rdf2 {[%clk 0:00:40]}  Rd7 {[%clk 0:00:18]} 33. Re1 {[%clk 0:00:38]}  Kg7 {[%clk 0:00:17]} 34. Nd2 {[%clk 0:00:35]}  Rf4 {[%clk 0:00:16]} 35. Rfe2 {[%clk 0:00:32]}  Nf6 {[%clk 0:00:16]} 36. Nc4 {[%clk 0:00:32]}  d5 {[%clk 0:00:15]} 37. Ne5 {[%clk 0:00:32]}  Rc7 {[%clk 0:00:15]} 38. Rc2 {[%clk 0:00:32]}  c5 {[%clk 0:00:16]} 39. Nd3 {[%clk 0:00:31]}  Re4 {[%clk 0:00:14]} 40. Rec1 {[%clk 0:00:26]}  c4 {[%clk 0:00:14]} 41. Nf2 {[%clk 0:00:26]}  Rf4 {[%clk 0:00:13]} 42. Nd1 {[%clk 0:00:26]}  Rb7 {[%clk 0:00:12]} 43. Nc3 {[%clk 0:00:24]}  cxb3 {[%clk 0:00:13]} 44. axb3 {[%clk 0:00:25]}  Rfb4 {[%clk 0:00:13]} 45. Na2 {[%clk 0:00:21]}  Rxb3+ {[%clk 0:00:13]} 46. Ka1 {[%clk 0:00:22]}  R3b6 {[%clk 0:00:12]} 47. Rd2 {[%clk 0:00:22]}  Rd6 {[%clk 0:00:09]} 48. Rd4 {[%clk 0:00:20]}  Re7 {[%clk 0:00:08]} 49. Kb2 {[%clk 0:00:19]}  Re4 {[%clk 0:00:08]} 50. Rd3 {[%clk 0:00:19]}  g5 {[%clk 0:00:08]} 51. Rg1 {[%clk 0:00:19]}  g4 {[%clk 0:00:08]} 52. Nc3 {[%clk 0:00:19]}  Rb4+ {[%clk 0:00:08]} 53. Kc2 {[%clk 0:00:19]}  Rc4 {[%clk 0:00:08]} 54. Kd1 {[%clk 0:00:18]}  Kg6 {[%clk 0:00:08]} 55. Ne2 {[%clk 0:00:19]}  Kg5 {[%clk 0:00:08]} 56. Ng3 {[%clk 0:00:19]}  Re6 {[%clk 0:00:08]} 57. Rf1 {[%clk 0:00:18]}  Re5 {[%clk 0:00:08]} 58. Rg1 {[%clk 0:00:18]}  Rf4 {[%clk 0:00:08]} 59. Ne2 {[%clk 0:00:17]}  Rfe4 {[%clk 0:00:07]} 60. Nd4 {[%clk 0:00:17]}  Re3 {[%clk 0:00:05]} 61. Nf3+ {[%clk 0:00:17]}  Rxf3 {[%clk 0:00:03]} 62. Rxf3 {[%clk 0:00:17]}  Rf5 {[%clk 0:00:04]} 63. Rd3 {[%clk 0:00:17]}  Ne4 {[%clk 0:00:04]} 64. Rd4 {[%clk 0:00:17]}  f6 {[%clk 0:00:03]} 65. Ke2 {[%clk 0:00:17]}  Re5 {[%clk 0:00:04]} 66. Kf1 {[%clk 0:00:17]}  a5 {[%clk 0:00:04]} 67. Rg2 {[%clk 0:00:16]}  f5 {[%clk 0:00:05]} 68. Ra2 {[%clk 0:00:17]}  f4 {[%clk 0:00:06]} 69. Rxa5 {[%clk 0:00:17]}  Kh4 {[%clk 0:00:05]} 70. Raxd5 {[%clk 0:00:16]}  Ng3+ {[%clk 0:00:05]} 71. Kf2 {[%clk 0:00:14]}  Re2+ {[%clk 0:00:06]} 72. Kg1 {[%clk 0:00:14]}  f3 {[%clk 0:00:06]} 73. Rxg4+ {[%clk 0:00:13]}  Kxg4 {[%clk 0:00:06]} 74. Rg5+ {[%clk 0:00:13]}  Kf4 {[%clk 0:00:06]} 75. Rg4+ {[%clk 0:00:13]}  Ke3 {[%clk 0:00:05]} 76. Rxg3 {[%clk 0:00:14]}  Re1+ {[%clk 0:00:05]} 77. Kh2 {[%clk 0:00:14]}  Kf2 {[%clk 0:00:04]} 78. Rg8 {[%clk 0:00:13]}  Re7 {[%clk 0:00:05]} 79. Rh8 {[%clk 0:00:12]}  Ke2 {[%clk 0:00:04]} 80. Kg3 {[%clk 0:00:10]}  f2 {[%clk 0:00:04]} 81. Rh2 {[%clk 0:00:10]}  Rg7+ {[%clk 0:00:04]} 82. Kf4 {[%clk 0:00:10]}  Ke1 {[%clk 0:00:04]} 83. Ke3 {[%clk 0:00:09]}  f1=Q {[%clk 0:00:04]} 84. Rd2 {[%clk 0:00:07]}  Qg1+ {[%clk 0:00:04]} 0-1


[Site "https://www.chess.com"]

[Event "Titled Tuesday Blitz July 18 Early 2023"]
[White "Rodriguez Fontecha, Marcos"]
[Black "djokovic74"]
[WhiteFideId "2256576"]
[WhiteElo "2477"]
[BlackElo "2730"]
[Result "0-1"]
[Round "9"]
[TimeControl "180+2"]
[Date "2023.07.18"]
[WhiteClock "0:00:27"]
[BlackClock "0:02:18"]
[Board "76"]

1. e4 {[%clk 0:03:00]}  e6 {[%clk 0:03:00]} 2. d4 {[%clk 0:03:00]}  d5 {[%clk 0:03:01]} 3. Nc3 {[%clk 0:03:00]}  Bb4 {[%clk 0:03:01]} 4. Ne2 {[%clk 0:03:00]}  dxe4 {[%clk 0:03:00]} 5. a3 {[%clk 0:03:00]}  Bxc3+ {[%clk 0:03:00]} 6. Nxc3 {[%clk 0:03:01]}  Nf6 {[%clk 0:03:01]} 7. Bg5 {[%clk 0:02:58]}  h6 {[%clk 0:02:59]} 8. Bxf6 {[%clk 0:02:57]}  Qxf6 {[%clk 0:02:59]} 9. Nxe4 {[%clk 0:02:58]}  Qe7 {[%clk 0:02:59]} 10. Bd3 {[%clk 0:02:56]}  Nd7 {[%clk 0:02:59]} 11. Qe2 {[%clk 0:02:47]}  O-O {[%clk 0:02:58]} 12. O-O-O {[%clk 0:02:35]}  a5 {[%clk 0:02:54]} 13. g4 {[%clk 0:02:33]}  a4 {[%clk 0:02:52]} 14. h4 {[%clk 0:02:28]}  f5 {[%clk 0:02:47]} 15. Nc3 {[%clk 0:02:20]}  fxg4 {[%clk 0:02:45]} 16. Qxg4 {[%clk 0:02:17]}  Nf6 {[%clk 0:02:45]} 17. Qg6 {[%clk 0:02:14]}  Qf7 {[%clk 0:02:45]} 18. Qg2 {[%clk 0:02:09]}  c6 {[%clk 0:02:44]} 19. Rhg1 {[%clk 0:02:04]}  Nd5 {[%clk 0:02:44]} 20. Nxd5 {[%clk 0:01:45]}  exd5 {[%clk 0:02:44]} 21. Kb1 {[%clk 0:01:45]}  b5 {[%clk 0:02:40]} 22. Rde1 {[%clk 0:01:44]}  Ra7 {[%clk 0:02:41]} 23. Re5 {[%clk 0:01:27]}  Qf6 {[%clk 0:02:32]} 24. f4 {[%clk 0:01:24]}  b4 {[%clk 0:02:26]} 25. axb4 {[%clk 0:00:50]}  a3 {[%clk 0:02:26]} 26. b3 {[%clk 0:00:50]}  a2+ {[%clk 0:02:21]} 27. Ka1 {[%clk 0:00:49]}  Qxf4 {[%clk 0:02:21]} 28. Qg6 {[%clk 0:00:27]}  Qxd4+ {[%clk 0:02:18]} 0-1


[Site "https://www.chess.com"]

[Event "Titled Tuesday Blitz July 18 Early 2023"]
[White "Begunov, Konstantin"]
[Black "Spata, German"]
[WhiteFideId "4118510"]
[BlackFideId "113026"]
[WhiteElo "2462"]
[BlackElo "2639"]
[Result "1-0"]
[Round "9"]
[TimeControl "180+2"]
[Date "2023.07.18"]
[WhiteClock "0:01:28"]
[BlackClock "0:02:12"]
[Board "80"]

1. d4 {[%clk 0:02:56]}  d5 {[%clk 0:02:59]} 2. c4 {[%clk 0:02:56]}  e6 {[%clk 0:02:59]} 3. Nc3 {[%clk 0:02:57]}  Nf6 {[%clk 0:02:59]} 4. cxd5 {[%clk 0:02:57]}  Nxd5 {[%clk 0:03:00]} 5. g3 {[%clk 0:02:56]}  c5 {[%clk 0:02:59]} 6. Bg2 {[%clk 0:02:54]}  Nxc3 {[%clk 0:02:59]} 7. bxc3 {[%clk 0:02:54]}  cxd4 {[%clk 0:02:59]} 8. cxd4 {[%clk 0:02:55]}  Bb4+ {[%clk 0:03:00]} 9. Bd2 {[%clk 0:02:54]}  Qa5 {[%clk 0:02:59]} 10. Rb1 {[%clk 0:02:41]}  Bxd2+ {[%clk 0:02:59]} 11. Qxd2 {[%clk 0:02:42]}  Qxd2+ {[%clk 0:02:58]} 12. Kxd2 {[%clk 0:02:43]}  Nc6 {[%clk 0:02:55]} 13. Bxc6+ {[%clk 0:02:39]}  bxc6 {[%clk 0:02:55]} 14. Nf3 {[%clk 0:02:39]}  O-O {[%clk 0:02:51]} 15. Rhc1 {[%clk 0:02:37]}  Bd7 {[%clk 0:02:45]} 16. Rb7 {[%clk 0:02:28]}  Rfd8 {[%clk 0:02:45]} 17. Ne5 {[%clk 0:02:20]}  Be8 {[%clk 0:02:45]} 18. e3 {[%clk 0:02:15]}  Rd6 {[%clk 0:02:44]} 19. Rc5 {[%clk 0:02:03]}  f6 {[%clk 0:02:42]} 20. Nc4 {[%clk 0:01:58]}  Rdd8 {[%clk 0:02:39]} 21. Ra5 {[%clk 0:01:54]}  e5 {[%clk 0:02:32]} 22. Kc3 {[%clk 0:01:51]}  exd4+ {[%clk 0:02:31]} 23. exd4 {[%clk 0:01:52]}  Rd7 {[%clk 0:02:18]} 24. Rxd7 {[%clk 0:01:39]}  Bxd7 {[%clk 0:02:19]} 25. Nb6 {[%clk 0:01:38]}  Rd8 {[%clk 0:02:18]} 26. Rxa7 {[%clk 0:01:37]}  Be6 {[%clk 0:02:17]} 27. a4 {[%clk 0:01:32]}  h5 {[%clk 0:02:15]} 28. a5 {[%clk 0:01:32]}  Re8 {[%clk 0:02:12]} 29. Ra8 {[%clk 0:01:28]} 1-0


[Site "https://www.chess.com"]

[Event "Titled Tuesday Blitz July 18 Early 2023"]
[White "Namitbir Singh Walia"]
[Black "Onufrienko, Vladislav"]
[WhiteFideId "35071068"]
[BlackFideId "13804332"]
[WhiteElo "2452"]
[BlackElo "2610"]
[Result "0-1"]
[Round "9"]
[TimeControl "180+2"]
[Date "2023.07.18"]
[WhiteClock "0:00:09"]
[BlackClock "0:00:26"]
[Board "83"]

1. e4 {[%clk 0:03:00]}  Nf6 {[%clk 0:03:00]} 2. e5 {[%clk 0:03:00]}  Nd5 {[%clk 0:03:00]} 3. d4 {[%clk 0:03:00]}  d6 {[%clk 0:03:00]} 4. exd6 {[%clk 0:03:01]}  exd6 {[%clk 0:03:01]} 5. c4 {[%clk 0:03:02]}  Nb6 {[%clk 0:03:00]} 6. Nc3 {[%clk 0:03:01]}  Be7 {[%clk 0:03:01]} 7. Nf3 {[%clk 0:03:02]}  O-O {[%clk 0:03:02]} 8. Be2 {[%clk 0:03:00]}  Bf5 {[%clk 0:03:02]} 9. O-O {[%clk 0:03:00]}  Nc6 {[%clk 0:03:02]} 10. b3 {[%clk 0:02:59]}  Bf6 {[%clk 0:03:02]} 11. Bb2 {[%clk 0:02:59]}  Re8 {[%clk 0:03:02]} 12. d5 {[%clk 0:02:55]}  Ne5 {[%clk 0:02:58]} 13. Nxe5 {[%clk 0:02:49]}  Bxe5 {[%clk 0:02:59]} 14. Bd3 {[%clk 0:02:33]}  Qf6 {[%clk 0:02:46]} 15. Bxf5 {[%clk 0:02:25]}  Qxf5 {[%clk 0:02:47]} 16. Rb1 {[%clk 0:01:31]}  Nd7 {[%clk 0:02:46]} 17. Nb5 {[%clk 0:01:29]}  Rec8 {[%clk 0:02:21]} 18. Bxe5 {[%clk 0:01:26]}  Nxe5 {[%clk 0:02:21]} 19. Qd4 {[%clk 0:01:24]}  a6 {[%clk 0:02:16]} 20. Nc3 {[%clk 0:01:23]}  Re8 {[%clk 0:02:16]} 21. Rbe1 {[%clk 0:01:20]}  h6 {[%clk 0:02:06]} 22. Re4 {[%clk 0:01:12]}  Qg6 {[%clk 0:01:41]} 23. f4 {[%clk 0:00:39]}  f5 {[%clk 0:01:41]} 24. Re2 {[%clk 0:00:19]}  Nd7 {[%clk 0:01:27]} 25. Rfe1 {[%clk 0:00:19]}  Nf6 {[%clk 0:01:16]} 26. Re6 {[%clk 0:00:19]}  Qf7 {[%clk 0:00:46]} 27. Qd3 {[%clk 0:00:19]}  Nd7 {[%clk 0:00:44]} 28. Rxe8+ {[%clk 0:00:16]}  Rxe8 {[%clk 0:00:45]} 29. Qd2 {[%clk 0:00:16]}  Nf6 {[%clk 0:00:41]} 30. Rxe8+ {[%clk 0:00:13]}  Qxe8 {[%clk 0:00:42]} 31. h3 {[%clk 0:00:13]}  Kh7 {[%clk 0:00:41]} 32. Kf2 {[%clk 0:00:12]}  Qh5 {[%clk 0:00:40]} 33. Qe2 {[%clk 0:00:12]}  Qh4+ {[%clk 0:00:40]} 34. Kf3 {[%clk 0:00:12]}  Nh5 {[%clk 0:00:39]} 35. Qe3 {[%clk 0:00:09]}  Qg3+ {[%clk 0:00:38]} 36. Ke2 {[%clk 0:00:10]}  Nxf4+ {[%clk 0:00:38]} 37. Kd2 {[%clk 0:00:09]}  Qxg2+ {[%clk 0:00:34]} 38. Kc1 {[%clk 0:00:10]}  Qxh3 {[%clk 0:00:28]} 39. Qxf4 {[%clk 0:00:09]}  Qxc3+ {[%clk 0:00:28]} 40. Kb1 {[%clk 0:00:10]}  Qf6 {[%clk 0:00:26]} 41. a4 {[%clk 0:00:10]}  g5 {[%clk 0:00:26]} 42. Qe3 {[%clk 0:00:10]}  f4 {[%clk 0:00:25]} 43. Qe8 {[%clk 0:00:10]}  Qg6+ {[%clk 0:00:25]} 44. Qxg6+ {[%clk 0:00:09]}  Kxg6 {[%clk 0:00:26]} 0-1


[Site "https://www.chess.com"]